[Event "Titled Tuesday Blitz October 11 Early 2022"]
[White "Gabdrakhmanov, Azat"]
[Black "Kushko, Dmitriy"]
[WhiteFideId "34189197"]
[BlackFideId "14162261"]
[WhiteElo "2233"]
[BlackElo "2230"]
[Result "1-0"]
[Round "06"]
[TimeControl "180+1"]
[Date "2022.10.11"]
[WhiteClock "0:00:10"]
[BlackClock "0:00:03"]

1. e3 {[%clk 0:02:59]}  g6 {[%clk 0:02:59]} 2. c4 {[%clk 0:02:57]}  Bg7 {[%clk 0:02:59]} 3. Nc3 {[%clk 0:02:57]}  Nf6 {[%clk 0:02:58]} 4. Nf3 {[%clk 0:02:58]}  O-O {[%clk 0:02:58]} 5. Be2 {[%clk 0:02:58]}  d6 {[%clk 0:02:58]} 6. O-O {[%clk 0:02:58]}  e5 {[%clk 0:02:58]} 7. d3 {[%clk 0:02:58]}  c5 {[%clk 0:02:48]} 8. b3 {[%clk 0:02:57]}  Nc6 {[%clk 0:02:47]} 9. Bb2 {[%clk 0:02:57]}  d5 {[%clk 0:02:40]} 10. cxd5 {[%clk 0:02:56]}  Nxd5 {[%clk 0:02:41]} 11. Nxd5 {[%clk 0:02:56]}  Qxd5 {[%clk 0:02:42]} 12. Qc2 {[%clk 0:02:52]}  Bd7 {[%clk 0:02:36]} 13. Rac1 {[%clk 0:02:51]}  b6 {[%clk 0:02:35]} 14. Rfd1 {[%clk 0:02:45]}  Rfc8 {[%clk 0:02:27]} 15. Qb1 {[%clk 0:02:40]}  h6 {[%clk 0:02:24]} 16. Nd2 {[%clk 0:02:40]}  Be6 {[%clk 0:02:15]} 17. Bf3 {[%clk 0:02:30]}  Qd7 {[%clk 0:02:15]} 18. Nc4 {[%clk 0:02:24]}  Bd5 {[%clk 0:02:03]} 19. Be2 {[%clk 0:02:03]}  h5 {[%clk 0:01:57]} 20. a3 {[%clk 0:02:01]}  Qe7 {[%clk 0:01:30]} 21. Nd2 {[%clk 0:01:49]}  a5 {[%clk 0:01:19]} 22. Bf3 {[%clk 0:01:35]}  Bxf3 {[%clk 0:01:09]} 23. Nxf3 {[%clk 0:01:36]}  a4 {[%clk 0:01:01]} 24. bxa4 {[%clk 0:01:31]}  Rxa4 {[%clk 0:01:00]} 25. Nd2 {[%clk 0:01:32]}  Ra6 {[%clk 0:00:44]} 26. Qc2 {[%clk 0:01:22]}  Rca8 {[%clk 0:00:31]} 27. h3 {[%clk 0:01:19]}  Kh7 {[%clk 0:00:28]} 28. Ne4 {[%clk 0:01:16]}  f5 {[%clk 0:00:23]} 29. Nc3 {[%clk 0:01:14]}  Qf7 {[%clk 0:00:22]} 30. Rb1 {[%clk 0:01:09]}  h4 {[%clk 0:00:17]} 31. Ne2 {[%clk 0:01:03]}  Bf6 {[%clk 0:00:16]} 32. d4 {[%clk 0:00:54]}  exd4 {[%clk 0:00:12]} 33. exd4 {[%clk 0:00:55]}  Nxd4 {[%clk 0:00:11]} 34. Nxd4 {[%clk 0:00:55]}  Bxd4 {[%clk 0:00:11]} 35. Bxd4 {[%clk 0:00:54]}  cxd4 {[%clk 0:00:11]} 36. Rxd4 {[%clk 0:00:55]}  Rxa3 {[%clk 0:00:10]} 37. Rxh4+ {[%clk 0:00:54]}  Kg8 {[%clk 0:00:07]} 38. Qb2 {[%clk 0:00:47]}  Qg7 {[%clk 0:00:06]} 39. Qxb6 {[%clk 0:00:43]}  R3a6 {[%clk 0:00:03]} 40. Qb3+ {[%clk 0:00:33]}  Kf8 {[%clk 0:00:04]} 41. Qd1 {[%clk 0:00:23]}  Re8 {[%clk 0:00:02]} 42. Qf3 {[%clk 0:00:20]}  Rae6 {[%clk 0:00:02]} 43. g3 {[%clk 0:00:20]}  Re1+ {[%clk 0:00:03]} 44. Rxe1 {[%clk 0:00:20]}  Rxe1+ {[%clk 0:00:04]} 45. Kg2 {[%clk 0:00:21]}  Re8 {[%clk 0:00:04]} 46. Rb4 {[%clk 0:00:19]}  Qe5 {[%clk 0:00:04]} 47. Rb6 {[%clk 0:00:18]}  Re6 {[%clk 0:00:03]} 48. Qa8+ {[%clk 0:00:17]}  Kg7 {[%clk 0:00:04]} 49. Qb7+ {[%clk 0:00:17]}  Re7 {[%clk 0:00:03]} 50. Qc6 {[%clk 0:00:16]}  Qe4+ {[%clk 0:00:04]} 51. Qxe4 {[%clk 0:00:16]}  Rxe4 {[%clk 0:00:04]} 52. Rc6 {[%clk 0:00:16]}  Kf7 {[%clk 0:00:04]} 53. h4 {[%clk 0:00:16]}  Kg7 {[%clk 0:00:05]} 54. Kf3 {[%clk 0:00:17]}  Ra4 {[%clk 0:00:04]} 55. Rc3 {[%clk 0:00:17]}  Rd4 {[%clk 0:00:04]} 56. Ke3 {[%clk 0:00:18]}  Ra4 {[%clk 0:00:04]} 57. Rd3 {[%clk 0:00:18]}  Re4+ {[%clk 0:00:05]} 58. Kf3 {[%clk 0:00:18]}  Ra4 {[%clk 0:00:06]} 59. Rb3 {[%clk 0:00:17]}  Rc4 {[%clk 0:00:06]} 60. Ke3 {[%clk 0:00:17]}  Re4+ {[%clk 0:00:06]} 61. Kd3 {[%clk 0:00:17]}  Ra4 {[%clk 0:00:07]} 62. f3 {[%clk 0:00:18]}  Ra1 {[%clk 0:00:05]} 63. Ke3 {[%clk 0:00:18]}  Ra4 {[%clk 0:00:06]} 64. Rb7+ {[%clk 0:00:18]}  Kh6 {[%clk 0:00:05]} 65. Rd7 {[%clk 0:00:18]}  Ra3+ {[%clk 0:00:05]} 66. Rd3 {[%clk 0:00:16]}  Ra4 {[%clk 0:00:05]} 67. Rd4 {[%clk 0:00:17]}  Ra5 {[%clk 0:00:04]} 68. Kf4 {[%clk 0:00:17]}  Kg7 {[%clk 0:00:04]} 69. Rd7+ {[%clk 0:00:16]}  Kf6 {[%clk 0:00:04]} 70. Rd6+ {[%clk 0:00:16]}  Kf7 {[%clk 0:00:04]} 71. Kg5 {[%clk 0:00:16]}  Ra3 {[%clk 0:00:02]} 72. Rf6+ {[%clk 0:00:15]}  Ke7 {[%clk 0:00:01]} 73. Kxg6 {[%clk 0:00:10]}  Rxf3 {[%clk 0:00:02]} 74. Rxf5 {[%clk 0:00:10]}  Rxg3+ {[%clk 0:00:02]} 75. Rg5 {[%clk 0:00:09]}  Ra3 {[%clk 0:00:02]} 76. Kg7 {[%clk 0:00:09]}  Ra6 {[%clk 0:00:02]} 77. h5 {[%clk 0:00:09]}  Ra7 {[%clk 0:00:02]} 78. h6 {[%clk 0:00:09]}  Ke6+ {[%clk 0:00:03]} 79. Kh8 {[%clk 0:00:09]}  Ra8+ {[%clk 0:00:03]} 80. Rg8 {[%clk 0:00:09]}  Ra7 {[%clk 0:00:03]} 81. Rf8 {[%clk 0:00:10]}  Ke7 {[%clk 0:00:03]} 82. Kg8 {[%clk 0:00:10]}  Ke6 {[%clk 0:00:03]} 83. h7 {[%clk 0:00:10]} 1-0


[Site "https://www.chess.com"]

[Event "Titled Tuesday Blitz October 11 Early 2022"]
[White "Garv Gaur"]
[Black "Baskakov, Egor"]
[WhiteFideId "45030839"]
[BlackFideId "24197866"]
[WhiteElo "1960"]
[BlackElo "2211"]
[Result "1/2-1/2"]
[Round "06"]
[TimeControl "180+1"]
[Date "2022.10.12"]
[WhiteClock "0:01:11"]
[BlackClock "0:01:46"]

1. d4 {[%clk 0:03:00]}  Nf6 {[%clk 0:02:59]} 2. Nf3 {[%clk 0:02:59]}  e6 {[%clk 0:03:00]} 3. c4 {[%clk 0:02:58]}  d5 {[%clk 0:03:01]} 4. g3 {[%clk 0:02:59]}  Be7 {[%clk 0:02:59]} 5. Bg2 {[%clk 0:02:58]}  O-O {[%clk 0:02:59]} 6. O-O {[%clk 0:02:58]}  Ne4 {[%clk 0:03:00]} 7. Nbd2 {[%clk 0:02:52]}  f5 {[%clk 0:02:59]} 8. Ne5 {[%clk 0:02:53]}  c6 {[%clk 0:02:59]} 9. Ndf3 {[%clk 0:02:53]}  Bd7 {[%clk 0:02:58]} 10. Qb3 {[%clk 0:02:50]}  Qb6 {[%clk 0:02:56]} 11. c5 {[%clk 0:02:50]}  Qxb3 {[%clk 0:02:55]} 12. axb3 {[%clk 0:02:51]}  Be8 {[%clk 0:02:55]} 13. b4 {[%clk 0:02:49]}  Nd7 {[%clk 0:02:54]} 14. h4 {[%clk 0:02:48]}  a6 {[%clk 0:02:53]} 15. Bf4 {[%clk 0:02:46]}  Nxe5 {[%clk 0:02:53]} 16. Nxe5 {[%clk 0:02:47]}  Nf6 {[%clk 0:02:52]} 17. Rfc1 {[%clk 0:02:42]}  Nd7 {[%clk 0:02:51]} 18. Nd3 {[%clk 0:02:39]}  Bh5 {[%clk 0:02:50]} 19. Kf1 {[%clk 0:02:38]}  Rae8 {[%clk 0:02:51]} 20. b5 {[%clk 0:02:26]}  axb5 {[%clk 0:02:41]} 21. Ra7 {[%clk 0:02:25]}  Bf6 {[%clk 0:02:07]} 22. Rxb7 {[%clk 0:02:22]}  Rf7 {[%clk 0:02:07]} 23. e3 {[%clk 0:02:20]}  e5 {[%clk 0:02:01]} 24. dxe5 {[%clk 0:02:10]}  Nxe5 {[%clk 0:02:02]} 25. Rxf7 {[%clk 0:02:00]}  Bxf7 {[%clk 0:01:58]} 26. Nxe5 {[%clk 0:01:54]}  Bxe5 {[%clk 0:01:59]} 27. Bxe5 {[%clk 0:01:54]}  Rxe5 {[%clk 0:02:00]} 28. Ra1 {[%clk 0:01:54]}  Be8 {[%clk 0:01:52]} 29. b4 {[%clk 0:01:52]}  Kf7 {[%clk 0:01:51]} 30. Ke2 {[%clk 0:01:52]}  g6 {[%clk 0:01:49]} 31. Kd3 {[%clk 0:01:52]}  h6 {[%clk 0:01:50]} 32. Ra8 {[%clk 0:01:50]}  Re7 {[%clk 0:01:50]} 33. Bh3 {[%clk 0:01:46]}  h5 {[%clk 0:01:48]} 34. Bg2 {[%clk 0:01:45]}  Kf6 {[%clk 0:01:48]} 35. Kd4 {[%clk 0:01:42]}  Kf7 {[%clk 0:01:48]} 36. Bf3 {[%clk 0:01:35]}  Kf6 {[%clk 0:01:48]} 37. Ra6 {[%clk 0:01:29]}  Kf7 {[%clk 0:01:46]} 38. Bg2 {[%clk 0:01:28]}  Kg7 {[%clk 0:01:47]} 39. Ra8 {[%clk 0:01:11]}  Kf7 {[%clk 0:01:46]} 1/2-1/2


[Site "https://www.chess.com"]

[Event "Titled Tuesday Blitz October 11 Early 2022"]
[White "Gilmanov, Mansur"]
[Black "Papasimakopoulos, Alexandros"]
[WhiteFideId "4166868"]
[BlackFideId "4244125"]
[WhiteElo "2377"]
[BlackElo "2357"]
[Result "0-1"]
[Round "06"]
[TimeControl "180+1"]
[Date "2022.10.12"]
[WhiteClock "0:00:07"]
[BlackClock "0:00:04"]

1. d4 {[%clk 0:03:00]}  e6 {[%clk 0:02:52]} 2. Nf3 {[%clk 0:02:54]}  Nf6 {[%clk 0:02:52]} 3. Bg5 {[%clk 0:02:54]}  c5 {[%clk 0:02:52]} 4. Nc3 {[%clk 0:02:52]}  cxd4 {[%clk 0:02:44]} 5. Nxd4 {[%clk 0:02:52]}  d5 {[%clk 0:02:38]} 6. e3 {[%clk 0:02:50]}  Be7 {[%clk 0:02:37]} 7. g3 {[%clk 0:02:39]}  Qb6 {[%clk 0:02:32]} 8. Nb3 {[%clk 0:02:35]}  h6 {[%clk 0:02:31]} 9. Bxf6 {[%clk 0:02:24]}  Bxf6 {[%clk 0:02:31]} 10. Bg2 {[%clk 0:02:23]}  Nc6 {[%clk 0:02:22]} 11. O-O {[%clk 0:02:23]}  O-O {[%clk 0:02:19]} 12. Rb1 {[%clk 0:02:18]}  Qc7 {[%clk 0:02:16]} 13. e4 {[%clk 0:02:14]}  Bxc3 {[%clk 0:02:15]} 14. bxc3 {[%clk 0:02:14]}  dxe4 {[%clk 0:02:14]} 15. Bxe4 {[%clk 0:02:13]}  b6 {[%clk 0:02:13]} 16. Nd4 {[%clk 0:02:01]}  Bb7 {[%clk 0:02:13]} 17. Qf3 {[%clk 0:01:56]}  Ne5 {[%clk 0:02:06]} 18. Qg2 {[%clk 0:01:53]}  Bxe4 {[%clk 0:02:06]} 19. Qxe4 {[%clk 0:01:53]}  Nc4 {[%clk 0:02:00]} 20. Rfd1 {[%clk 0:01:48]}  Rad8 {[%clk 0:01:51]} 21. Rd3 {[%clk 0:01:08]}  Rd5 {[%clk 0:01:40]} 22. Nxe6 {[%clk 0:00:58]}  Re5 {[%clk 0:01:14]} 23. Nxc7 {[%clk 0:00:40]}  Rxe4 {[%clk 0:01:14]} 24. Nd5 {[%clk 0:00:34]}  Re2 {[%clk 0:01:05]} 25. Rb4 {[%clk 0:00:34]}  Ne5 {[%clk 0:01:04]} 26. Re3 {[%clk 0:00:30]}  Rxe3 {[%clk 0:01:04]} 27. Nxe3 {[%clk 0:00:30]}  Rc8 {[%clk 0:01:04]} 28. Re4 {[%clk 0:00:28]}  f6 {[%clk 0:00:59]} 29. c4 {[%clk 0:00:27]}  Rd8 {[%clk 0:00:54]} 30. Nd5 {[%clk 0:00:22]}  Kf8 {[%clk 0:00:52]} 31. Nf4 {[%clk 0:00:20]}  Kf7 {[%clk 0:00:52]} 32. Kg2 {[%clk 0:00:20]}  Rd2 {[%clk 0:00:49]} 33. c3 {[%clk 0:00:16]}  Rxa2 {[%clk 0:00:49]} 34. Nd5 {[%clk 0:00:17]}  Rd2 {[%clk 0:00:43]} 35. g4 {[%clk 0:00:17]}  Kf8 {[%clk 0:00:38]} 36. Kg3 {[%clk 0:00:16]}  Nxc4 {[%clk 0:00:35]} 37. Nf4 {[%clk 0:00:13]}  Ne5 {[%clk 0:00:31]} 38. Ne6+ {[%clk 0:00:09]}  Kf7 {[%clk 0:00:31]} 39. Nd4 {[%clk 0:00:10]}  Rd3+ {[%clk 0:00:31]} 40. Kg2 {[%clk 0:00:10]}  Rxc3 {[%clk 0:00:29]} 41. f4 {[%clk 0:00:09]}  Nxg4 {[%clk 0:00:27]} 42. Nf5 {[%clk 0:00:09]}  Rc7 {[%clk 0:00:20]} 43. h3 {[%clk 0:00:08]}  h5 {[%clk 0:00:17]} 44. hxg4 {[%clk 0:00:07]}  hxg4 {[%clk 0:00:18]} 45. Kg3 {[%clk 0:00:08]}  Kf8 {[%clk 0:00:16]} 46. Nd6 {[%clk 0:00:08]}  g6 {[%clk 0:00:14]} 47. Re6 {[%clk 0:00:05]}  Rd7 {[%clk 0:00:12]} 48. Rxf6+ {[%clk 0:00:05]}  Ke7 {[%clk 0:00:13]} 49. Rxg6 {[%clk 0:00:04]}  Rxd6 {[%clk 0:00:13]} 50. Rg7+ {[%clk 0:00:04]}  Ke6 {[%clk 0:00:13]} 51. Rxa7 {[%clk 0:00:05]}  Kf5 {[%clk 0:00:13]} 52. Rf7+ {[%clk 0:00:05]}  Kg6 {[%clk 0:00:13]} 53. Rb7 {[%clk 0:00:04]}  Kf5 {[%clk 0:00:13]} 54. Rf7+ {[%clk 0:00:05]}  Ke4 {[%clk 0:00:08]} 55. Re7+ {[%clk 0:00:02]}  Kd3 {[%clk 0:00:05]} 56. Kxg4 {[%clk 0:00:02]}  b5 {[%clk 0:00:06]} 57. f5 {[%clk 0:00:02]}  b4 {[%clk 0:00:06]} 58. Re6 {[%clk 0:00:03]}  Rd8 {[%clk 0:00:05]} 59. f6 {[%clk 0:00:03]}  b3 {[%clk 0:00:05]} 60. Rb6 {[%clk 0:00:04]}  Kc2 {[%clk 0:00:04]} 61. f7 {[%clk 0:00:04]}  b2 {[%clk 0:00:05]} 62. Kf5 {[%clk 0:00:04]}  Kc1 {[%clk 0:00:03]} 63. Rc6+ {[%clk 0:00:04]}  Kd2 {[%clk 0:00:03]} 64. Rd6+ {[%clk 0:00:04]}  Rxd6 {[%clk 0:00:03]} 65. f8=Q {[%clk 0:00:05]}  b1=Q+ {[%clk 0:00:04]} 66. Ke5 {[%clk 0:00:05]}  Rd3 {[%clk 0:00:04]} 67. Qf2+ {[%clk 0:00:05]}  Kc3 {[%clk 0:00:04]} 68. Qc5+ {[%clk 0:00:06]}  Kb2 {[%clk 0:00:04]} 69. Qb4+ {[%clk 0:00:07]}  Rb3 {[%clk 0:00:04]} 70. Qe4 {[%clk 0:00:07]}  Qxe4+ {[%clk 0:00:04]} 71. Kxe4 {[%clk 0:00:07]}  Rc3 {[%clk 0:00:04]} 0-1


[Site "https://www.chess.com"]

[Event "Titled Tuesday Blitz October 11 Early 2022"]
[White "Glavina, Pablo"]
[Black "D`Arruda, Ricardo D."]
[WhiteFideId "100234"]
[BlackFideId "100692"]
[WhiteElo "2351"]
[BlackElo "2413"]
[Result "0-1"]
[Round "06"]
[TimeControl "180+1"]
[Date "2022.10.12"]
[WhiteClock "0:00:21"]
[BlackClock "0:01:36"]

1. d4 {[%clk 0:03:00]}  Nf6 {[%clk 0:02:58]} 2. c4 {[%clk 0:03:00]}  e5 {[%clk 0:02:58]} 3. dxe5 {[%clk 0:02:58]}  Ne4 {[%clk 0:02:58]} 4. Nd2 {[%clk 0:02:42]}  Nc5 {[%clk 0:02:57]} 5. Ngf3 {[%clk 0:02:38]}  Nc6 {[%clk 0:02:57]} 6. g3 {[%clk 0:02:34]}  d6 {[%clk 0:02:56]} 7. exd6 {[%clk 0:02:33]}  Qxd6 {[%clk 0:02:57]} 8. Bg2 {[%clk 0:02:32]}  Be7 {[%clk 0:02:56]} 9. O-O {[%clk 0:02:31]}  Bf5 {[%clk 0:02:56]} 10. Nb3 {[%clk 0:02:27]}  Qxd1 {[%clk 0:02:53]} 11. Rxd1 {[%clk 0:02:25]}  Bc2 {[%clk 0:02:54]} 12. Nxc5 {[%clk 0:01:55]}  Bxd1 {[%clk 0:02:53]} 13. Nxb7 {[%clk 0:01:53]}  Bxe2 {[%clk 0:02:53]} 14. Bf4 {[%clk 0:01:50]}  O-O {[%clk 0:02:42]} 15. Bxc7 {[%clk 0:01:18]}  Rac8 {[%clk 0:02:39]} 16. Bd6 {[%clk 0:01:11]}  Bxc4 {[%clk 0:02:26]} 17. Bxe7 {[%clk 0:01:10]}  Nxe7 {[%clk 0:02:25]} 18. Nd6 {[%clk 0:01:03]}  Rc6 {[%clk 0:02:25]} 19. Ne5 {[%clk 0:00:54]}  Rxd6 {[%clk 0:02:22]} 20. Nxc4 {[%clk 0:00:54]}  Re6 {[%clk 0:02:18]} 21. Kf1 {[%clk 0:00:46]}  Rc8 {[%clk 0:02:16]} 22. b3 {[%clk 0:00:44]}  Rd8 {[%clk 0:02:15]} 23. Ne3 {[%clk 0:00:43]}  Rd2 {[%clk 0:02:12]} 24. Ke1 {[%clk 0:00:36]}  Rb2 {[%clk 0:02:06]} 25. Rd1 {[%clk 0:00:33]}  g6 {[%clk 0:02:05]} 26. Rd2 {[%clk 0:00:33]}  Rxd2 {[%clk 0:02:03]} 27. Kxd2 {[%clk 0:00:34]}  Nc6 {[%clk 0:01:54]} 28. Kc3 {[%clk 0:00:31]}  Kf8 {[%clk 0:01:45]} 29. Bd5 {[%clk 0:00:30]}  Rd6 {[%clk 0:01:42]} 30. Kc4 {[%clk 0:00:27]}  Ne7 {[%clk 0:01:42]} 31. Be4 {[%clk 0:00:22]}  Rd2 {[%clk 0:01:40]} 32. Bc2 {[%clk 0:00:22]}  Rxf2 {[%clk 0:01:39]} 33. h4 {[%clk 0:00:21]}  Rf3 {[%clk 0:01:36]} 0-1


[Site "https://www.chess.com"]

[Event "Titled Tuesday Blitz October 11 Early 2022"]
[White "Hansen, Eric"]
[Black "Liyanage, Ranindu Dilshan"]
[WhiteFideId "2606771"]
[BlackFideId "9915834"]
[WhiteElo "2568"]
[BlackElo "2210"]
[Result "1-0"]
[Round "06"]
[TimeControl "180+1"]
[Date "2022.10.11"]
[WhiteClock "0:00:17"]
[BlackClock "0:00:02"]

1. d4 {[%clk 0:02:59]}  Nf6 {[%clk 0:02:59]} 2. Nf3 {[%clk 0:02:54]}  d5 {[%clk 0:02:58]} 3. c4 {[%clk 0:02:54]}  e6 {[%clk 0:02:58]} 4. Nc3 {[%clk 0:02:54]}  Bb4 {[%clk 0:02:59]} 5. Qa4+ {[%clk 0:02:53]}  Nc6 {[%clk 0:02:59]} 6. Bg5 {[%clk 0:02:54]}  h6 {[%clk 0:02:51]} 7. Bxf6 {[%clk 0:02:54]}  Qxf6 {[%clk 0:02:52]} 8. e3 {[%clk 0:02:54]}  Bd7 {[%clk 0:02:48]} 9. Qc2 {[%clk 0:02:52]}  dxc4 {[%clk 0:02:43]} 10. Bxc4 {[%clk 0:02:53]}  Bd6 {[%clk 0:02:43]} 11. Ne4 {[%clk 0:02:39]}  Qe7 {[%clk 0:02:43]} 12. a3 {[%clk 0:02:37]}  e5 {[%clk 0:02:30]} 13. Rd1 {[%clk 0:02:28]}  O-O {[%clk 0:02:20]} 14. dxe5 {[%clk 0:02:23]}  Bxe5 {[%clk 0:02:04]} 15. Nxe5 {[%clk 0:02:14]}  Nxe5 {[%clk 0:02:04]} 16. Be2 {[%clk 0:02:14]}  Bc6 {[%clk 0:01:59]} 17. O-O {[%clk 0:02:11]}  Rad8 {[%clk 0:01:55]} 18. b4 {[%clk 0:02:08]}  a6 {[%clk 0:01:51]} 19. Qc5 {[%clk 0:02:01]}  Qe6 {[%clk 0:01:44]} 20. Ng3 {[%clk 0:02:02]}  Rd5 {[%clk 0:01:33]} 21. Qc3 {[%clk 0:01:58]}  Rfd8 {[%clk 0:01:28]} 22. Rxd5 {[%clk 0:01:42]}  Qxd5 {[%clk 0:01:20]} 23. f3 {[%clk 0:01:43]}  Re8 {[%clk 0:00:59]} 24. Rd1 {[%clk 0:01:39]}  Qe6 {[%clk 0:00:49]} 25. f4 {[%clk 0:01:30]}  Ng4 {[%clk 0:00:41]} 26. e4 {[%clk 0:01:30]}  Nf6 {[%clk 0:00:32]} 27. e5 {[%clk 0:01:21]}  Nd5 {[%clk 0:00:28]} 28. Qd4 {[%clk 0:01:18]}  Nb6 {[%clk 0:00:19]} 29. Qe3 {[%clk 0:01:03]}  Nc4 {[%clk 0:00:15]} 30. Qc3 {[%clk 0:01:00]}  Bb5 {[%clk 0:00:11]} 31. Bxc4 {[%clk 0:00:47]}  Qxc4 {[%clk 0:00:09]} 32. Qxc4 {[%clk 0:00:45]}  Bxc4 {[%clk 0:00:09]} 33. Rd7 {[%clk 0:00:46]}  Rc8 {[%clk 0:00:10]} 34. Ne4 {[%clk 0:00:43]}  Be6 {[%clk 0:00:08]} 35. Rd1 {[%clk 0:00:40]}  b6 {[%clk 0:00:08]} 36. Rc1 {[%clk 0:00:38]}  Kf8 {[%clk 0:00:07]} 37. Kf2 {[%clk 0:00:38]}  Ke7 {[%clk 0:00:07]} 38. Ke3 {[%clk 0:00:38]}  Bd5 {[%clk 0:00:05]} 39. g4 {[%clk 0:00:37]}  g6 {[%clk 0:00:05]} 40. f5 {[%clk 0:00:35]}  Bxe4 {[%clk 0:00:03]} 41. Kxe4 {[%clk 0:00:35]}  c6 {[%clk 0:00:03]} 42. a4 {[%clk 0:00:20]}  c5 {[%clk 0:00:03]} 43. a5 {[%clk 0:00:19]}  bxa5 {[%clk 0:00:03]} 44. Rxc5 {[%clk 0:00:18]}  Rxc5 {[%clk 0:00:02]} 45. bxc5 {[%clk 0:00:19]}  a4 {[%clk 0:00:01]} 46. Kd3 {[%clk 0:00:18]}  Kd7 {[%clk 0:00:02]} 47. e6+ {[%clk 0:00:17]}  fxe6 {[%clk 0:00:02]} 48. fxg6 {[%clk 0:00:17]} 1-0


[Site "https://www.chess.com"]

[Event "Titled Tuesday Blitz October 11 Early 2022"]
[White "Harsha Bharathakoti"]
[Black "Srihari L R"]
[WhiteFideId "5078776"]
[BlackFideId "46617116"]
[WhiteElo "2523"]
[BlackElo "2336"]
[Result "0-1"]
[Round "06"]
[TimeControl "180+1"]
[Date "2022.10.11"]
[WhiteClock "0:00:02"]
[BlackClock "0:00:04"]

1. e4 {[%clk 0:03:00]}  c5 {[%clk 0:02:54]} 2. f4 {[%clk 0:03:01]}  d5 {[%clk 0:02:53]} 3. exd5 {[%clk 0:03:01]}  Nf6 {[%clk 0:02:53]} 4. Bb5+ {[%clk 0:03:01]}  Bd7 {[%clk 0:02:51]} 5. Bxd7+ {[%clk 0:03:02]}  Qxd7 {[%clk 0:02:50]} 6. c4 {[%clk 0:03:02]}  e6 {[%clk 0:02:50]} 7. Qe2 {[%clk 0:03:03]}  Bd6 {[%clk 0:02:39]} 8. dxe6 {[%clk 0:03:03]}  fxe6 {[%clk 0:02:39]} 9. d3 {[%clk 0:03:04]}  O-O {[%clk 0:02:27]} 10. Nf3 {[%clk 0:03:04]}  Nc6 {[%clk 0:02:25]} 11. O-O {[%clk 0:03:01]}  Rfe8 {[%clk 0:02:13]} 12. Nc3 {[%clk 0:03:00]}  e5 {[%clk 0:02:11]} 13. f5 {[%clk 0:02:55]}  Nd4 {[%clk 0:02:07]} 14. Qf2 {[%clk 0:02:17]}  Qxf5 {[%clk 0:01:55]} 15. Ng5 {[%clk 0:01:08]}  Qxd3 {[%clk 0:01:42]} 16. Be3 {[%clk 0:00:38]}  Rf8 {[%clk 0:01:04]} 17. Rad1 {[%clk 0:00:38]}  Qg6 {[%clk 0:00:47]} 18. Qh4 {[%clk 0:00:38]}  h6 {[%clk 0:00:36]} 19. Nge4 {[%clk 0:00:37]}  Be7 {[%clk 0:00:36]} 20. Nxf6+ {[%clk 0:00:25]}  Rxf6 {[%clk 0:00:33]} 21. Qe4 {[%clk 0:00:17]}  Ne2+ {[%clk 0:00:25]} 22. Kh1 {[%clk 0:00:16]}  Nxc3 {[%clk 0:00:20]} 23. Qxg6 {[%clk 0:00:14]}  Rxg6 {[%clk 0:00:20]} 24. bxc3 {[%clk 0:00:14]}  Rd6 {[%clk 0:00:19]} 25. Rxd6 {[%clk 0:00:09]}  Bxd6 {[%clk 0:00:20]} 26. Rd1 {[%clk 0:00:10]}  Bf8 {[%clk 0:00:16]} 27. Rd7 {[%clk 0:00:10]}  b6 {[%clk 0:00:16]} 28. Kg1 {[%clk 0:00:08]}  a6 {[%clk 0:00:16]} 29. a4 {[%clk 0:00:08]}  Rb8 {[%clk 0:00:16]} 30. Ra7 {[%clk 0:00:02]}  b5 {[%clk 0:00:06]} 31. cxb5 {[%clk 0:00:01]}  axb5 {[%clk 0:00:06]} 32. axb5 {[%clk 0:00:02]}  Rxb5 {[%clk 0:00:05]} 33. Kf2 {[%clk 0:00:03]}  Rb3 {[%clk 0:00:05]} 34. Bd2 {[%clk 0:00:02]}  c4 {[%clk 0:00:04]} 35. Rc7 {[%clk 0:00:02]}  Rb2 {[%clk 0:00:03]} 36. Ke3 {[%clk 0:00:02]}  e4 {[%clk 0:00:03]} 37. Rxc4 {[%clk 0:00:02]}  Be7 {[%clk 0:00:03]} 38. Rd4 {[%clk 0:00:02]}  Bg5+ {[%clk 0:00:04]} 39. Ke2 {[%clk 0:00:01]}  e3 {[%clk 0:00:04]} 40. Rd8+ {[%clk 0:00:02]}  Bxd8 {[%clk 0:00:04]} 0-1


[Site "https://www.chess.com"]